bitfinex/quotes_BTCUSD_20241211
["timestamp","ask_amount","ask_price","bid_price","bid_amount"]
[1733885349717,0.205238,97448.0,97420.0,0.12562584]
[1733885349934,0.205247,97444.0,97427.0,0.205281]
[1733885350108,0.205238,97448.0,97427.0,0.205281]
[1733885350328,0.00533629,97441.0,97431.0,0.205272]
[1733885350868,0.00533629,97441.0,97427.0,0.20528]
[1733885352042,0.00533629,97441.0,97428.0,0.205279]
[1733885352261,0.00533629,97441.0,97427.0,0.20528]
[1733885352471,0.11066153,97441.0,97420.0,0.12562584]
[1733885352674,0.205264,97436.0,97427.0,0.003]
[1733885352889,0.205264,97436.0,97427.0,0.004]
[1733885353275,0.205264,97436.0,97420.0,0.12562584]
[1733885353478,0.205264,97436.0,97427.0,0.003]
[1733885353888,0.205264,97436.0,97427.0,0.001]
[1733885354057,0.206264,97436.0,97427.0,0.001]
[1733885355176,0.001,97436.0,97427.0,0.001]
[1733885355516,0.205257,97439.0,97421.0,0.205292]
[1733885355649,0.31058224,97439.0,97421.0,0.205292]
[1733885355851,0.001,97436.0,97421.0,0.205292]
[1733885356054,0.31058224,97439.0,97420.0,0.12586784]
[1733885356055,0.205268,97434.0,97420.0,0.12586784]
[1733885356249,0.10532524,97439.0,97420.0,0.12586784]
[1733885356514,0.205276,97430.0,97427.0,0.001]
[1733885356640,0.10532524,97429.0,97420.0,0.00046784]
[1733885356840,0.205294,97421.0,97420.0,0.00046784]
[1733885357048,0.31061924,97421.0,97420.0,0.00046784]
[1733885357891,0.41471105,97421.0,97420.0,0.00046784]
[1733885358096,0.64124931,97421.0,97420.0,0.00046784]
[1733885358297,0.56913049,97421.0,97420.0,0.00046784]
[1733885358728,0.75314253,97421.0,97420.0,0.00046784]
[1733885358934,0.355315,97411.0,97410.0,4e-08]
[1733885359137,0.64261323,97411.0,97410.0,6.286e-05]
[1733885359370,0.64261323,97411.0,97410.0,2.286e-05]
[1733885359371,0.34261323,97411.0,97410.0,2.286e-05]
[1733885359964,0.31064024,97411.0,97410.0,2.286e-05]
[1733885360276,0.32364024,97411.0,97410.0,0.00202286]
[1733885360571,0.31864024,97411.0,97410.0,0.00102286]
[1733885360874,0.31964024,97411.0,97410.0,0.00102286]
[1733885361195,0.009,97411.0,97410.0,0.00102286]
[1733885361925,0.205294,97422.0,97410.0,2.286e-05]
[1733885362132,0.205296,97420.0,97410.0,2.286e-05]
[1733885362322,0.01,97411.0,97410.0,0.00202286]
[1733885362528,0.005,97411.0,97410.0,0.00102286]
[1733885362762,0.10532524,97419.0,97410.0,2.286e-05]
[1733885363100,0.005,97411.0,97410.0,0.00102286]
[1733885363272,0.2053,97418.0,97410.0,0.00019426]
[1733885363618,0.001,97422.0,97415.0,0.205305]
[1733885363774,0.15,97440.0,97415.0,0.205305]
[1733885363951,0.13728164,97439.0,97411.0,0.205315]
[1733885364155,0.001,97419.0,97418.0,0.2053]
[1733885364828,0.001,97419.0,97410.0,0.00019426]
[1733885365219,0.205311,97413.0,97410.0,0.00019426]
[1733885365878,0.410622,97413.0,97410.0,0.00019426]
[1733885366032,0.205311,97413.0,97410.0,0.00119426]
[1733885366235,0.410622,97413.0,97410.0,0.00019426]
[1733885366759,0.410622,97413.0,97410.0,0.00119426]
[1733885366967,0.205315,97411.0,97410.0,0.00119426]
[1733885367167,0.36223536,97411.0,97410.0,0.00119426]
[1733885367468,0.36223536,97411.0,97410.0,0.00019426]
[1733885367469,0.39419966,97411.0,97410.0,0.00019426]
[1733885367811,0.34260454,97411.0,97410.0,0.00019426]
[1733885368007,0.34260454,97411.0,97410.0,0.00119426]
[1733885368770,0.34260454,97411.0,97410.0,0.00219426]
[1733885368974,0.006,97413.0,97410.0,0.00219426]
[1733885369375,0.41059,97421.0,97410.0,0.00119426]
[1733885369578,0.205298,97419.0,97410.0,0.00119426]
[1733885369781,0.007,97411.0,97410.0,0.00119426]
[1733885369948,0.004,97411.0,97410.0,0.00019426]
[1733885370556,0.0053414,97411.0,97410.0,0.00019426]
[1733885370963,0.0063414,97411.0,97410.0,0.00019426]
[1733885371164,0.0053414,97411.0,97410.0,0.00019426]
[1733885376152,0.0063414,97411.0,97410.0,0.00019426]
[1733885376509,0.0053414,97411.0,97410.0,0.00019426]
[1733885377338,0.0073414,97411.0,97410.0,0.00019426]
[1733885377542,0.0053414,97411.0,97410.0,0.00019426]
[1733885377904,0.0053414,97411.0,97410.0,0.00119426]
[1733885378413,0.0053414,97411.0,97410.0,0.00019426]
[1733885378700,0.0053414,97411.0,97410.0,0.07929426]
[1733885378873,0.0053414,97411.0,97410.0,0.07829426]
[1733885379281,0.0053414,97411.0,97410.0,0.07729426]
[1733885379581,0.0053414,97411.0,97410.0,0.12699426]
[1733885380449,0.0063414,97411.0,97410.0,0.12999426]
[1733885380772,0.0053414,97411.0,97410.0,0.12999426]
[1733885380973,0.0053414,97411.0,97410.0,0.13399426]
[1733885381393,0.0053414,97411.0,97410.0,0.05689426]
[1733885381709,0.11066664,97411.0,97410.0,0.00419426]
[1733885382135,0.14262787,97411.0,97410.0,0.00619426]
[1733885382655,0.14262787,97411.0,97410.0,0.00419426]
[1733885382892,0.15220428,97411.0,97410.0,0.00419426]
[1733885383079,0.24025975,97411.0,97410.0,0.00419426]
[1733885383303,0.33231472,97411.0,97410.0,0.00419426]
[1733885383492,0.23925975,97411.0,97410.0,0.00019426]
[1733885383702,0.15220428,97411.0,97410.0,0.00019426]
[1733885383917,0.31620428,97411.0,97410.0,0.00219426]
[1733885384104,0.46620428,97411.0,97410.0,0.00219426]
[1733885384281,0.60720428,97411.0,97410.0,2.6e-07]
[1733885384481,0.71230757,97411.0,97410.0,2.6e-07]
[1733885384697,0.72130757,97411.0,97410.0,0.00100026]
[1733885384940,0.61620428,97411.0,97410.0,0.00100026]
[1733885385421,0.355336,97401.0,97400.0,1.0001714]
[1733885385641,0.82675344,97401.0,97400.0,0.98018954]
[1733885385782,0.71822247,97401.0,97400.0,0.91858754]
[1733885385985,0.82332576,97401.0,97400.0,0.81591754]
[1733885386986,0.83032576,97401.0,97400.0,0.70029754]
[1733885387188,0.85332576,97401.0,97400.0,0.631653]
[1733885387386,0.80832576,97401.0,97400.0,0.40288482]
[1733885387619,0.81732576,97401.0,97400.0,0.40288482]
[1733885387819,1.08972476,97401.0,97400.0,0.36261058]
[1733885388069,1.08972476,97401.0,97400.0,0.3120511]
[1733885388272,1.07372476,97401.0,97400.0,0.21219695]
[1733885388481,1.07372476,97401.0,97400.0,0.11203974]
[1733885388681,1.08972476,97401.0,97400.0,0.08403974]
[1733885389005,1.08972476,97401.0,97400.0,0.02983652]
[1733885389228,0.528357,97391.0,97390.0,7.2e-07]
[1733885389401,0.73956634,97391.0,97390.0,7.2e-07]
[1733885389617,0.505378,97381.0,97380.0,9.2e-07]
[1733885389815,0.78045202,97381.0,97380.0,9.2e-07]
[1733885389965,0.64266447,97381.0,97380.0,9.2e-07]
[1733885390171,0.82638121,97381.0,97380.0,9.2e-07]
[1733885390373,0.64266447,97381.0,97380.0,9.2e-07]
[1733885390572,0.66989824,97381.0,97380.0,9.2e-07]
[1733885390796,0.67522997,97381.0,97380.0,9.2e-07]
[1733885390970,0.66665214,97381.0,97380.0,9.2e-07]
[1733885391371,0.62569091,97381.0,97380.0,9.2e-07]
[1733885391604,0.63469091,97381.0,97380.0,9.2e-07]
[1733885392117,0.62569091,97381.0,97380.0,9.2e-07]
[1733885392529,0.63169091,97381.0,97380.0,9.2e-07]
[1733885392886,0.62569091,97381.0,97380.0,9.2e-07]
[1733885393089,0.205397,97372.0,97371.0,0.00030092]
[1733885393289,0.31072224,97372.0,97371.0,0.00030092]
[1733885394455,0.31072224,97372.0,97371.0,0.08260092]
[1733885394456,0.10532524,97372.0,97371.0,0.08260092]
[1733885394872,0.205381,97380.0,97371.0,0.08260092]
[1733885394873,0.01033173,97381.0,97371.0,0.08260092]
[1733885395077,0.10532524,97380.0,97372.0,0.0456]
[1733885395713,0.205383,97379.0,97372.0,0.0456]
[1733885395994,0.10532524,97380.0,97372.0,0.0456]
[1733885396840,0.205383,97379.0,97372.0,0.0456]
[1733885397714,0.205385,97378.0,97372.0,0.0456]
[1733885397850,0.205383,97379.0,97372.0,0.0456]
[1733885398524,0.206383,97379.0,97372.0,0.0406]
[1733885399096,0.411766,97379.0,97372.0,0.0406]
[1733885399500,0.206383,97379.0,97372.0,0.0406]
[1733885400415,0.205395,97374.0,97372.0,0.0406]
[1733885400794,0.10532524,97373.0,97372.0,0.0406]
[1733885403532,0.15693576,97373.0,97372.0,0.0406]
[1733885403735,0.15693576,97373.0,97371.0,0.08260092]
[1733885403736,0.205397,97372.0,97371.0,0.08260092]
[1733885403933,0.31072224,97372.0,97371.0,0.08260092]
[1733885404375,0.31072224,97372.0,97371.0,0.06438792]
[1733885404586,0.31072224,97372.0,97370.0,0.0001716]
[1733885404703,0.10532524,97371.0,97370.0,0.0001716]
[1733885406197,0.11516528,97371.0,97370.0,0.0001716]
[1733885407313,0.12116528,97371.0,97370.0,0.0003716]
[1733885408044,0.11332524,97371.0,97370.0,0.0003716]
[1733885408511,0.008,97371.0,97370.0,0.0003716]
[1733885409734,0.15520404,97371.0,97370.0,0.0003716]
[1733885409889,0.14920404,97371.0,97370.0,0.0003716]
[1733885410091,0.14720404,97371.0,97370.0,0.0003716]
[1733885410435,0.15520404,97371.0,97370.0,0.0003716]
[1733885410635,0.10732524,97371.0,97370.0,0.0003716]
[1733885410841,0.11332524,97371.0,97370.0,0.0003716]
[1733885411065,0.11866713,97371.0,97370.0,0.0003716]
[1733885411427,0.11666713,97371.0,97370.0,0.0003716]
[1733885411627,0.11066713,97371.0,97370.0,0.0003716]
[1733885411830,0.11266713,97371.0,97370.0,0.0003716]
[1733885412033,0.00734189,97371.0,97370.0,0.0003716]
[1733885413243,0.00934189,97371.0,97370.0,0.0003716]
[1733885413449,0.00534189,97371.0,97370.0,0.0003716]
[1733885413712,0.00734189,97371.0,97370.0,0.0003716]
[1733885413920,0.11466713,97371.0,97370.0,0.0003716]
[1733885414131,0.18775154,97371.0,97370.0,0.0003716]
[1733885414575,0.36967297,97371.0,97370.0,0.0003716]
[1733885414701,0.51767297,97371.0,97370.0,0.0003716]
[1733885415104,0.51567297,97371.0,97370.0,0.0003716]
[1733885415977,0.52532151,97371.0,97370.0,0.0003716]
[1733885416491,0.53232151,97371.0,97370.0,0.0003716]
[1733885417054,0.52532151,97371.0,97370.0,0.0003716]
[1733885417227,0.4652371,97371.0,97370.0,0.0003716]
[1733885417833,0.4612371,97371.0,97370.0,0.0003716]
[1733885418036,0.3112371,97371.0,97370.0,6e-07]
[1733885418357,0.15,97352.0,97330.0,0.0481714]
[1733885418575,0.28724667,97352.0,97330.0,0.0481714]
[1733885418714,0.43724667,97352.0,97351.0,1e-06]
[1733885419428,0.43724667,97352.0,97330.0,0.0435724]
[1733885419429,0.15,97335.0,97330.0,0.0435724]
[1733885419628,0.205484,97331.0,97330.0,6.283e-05]
[1733885419832,0.34273067,97331.0,97330.0,6.283e-05]
[1733885420614,0.3480836,97331.0,97330.0,6.283e-05]
[1733885420829,0.03727436,97331.0,97330.0,0.08236283]
[1733885421030,0.03192143,97331.0,97330.0,0.08236283]
[1733885421238,0.003,97335.0,97330.0,0.08236283]
[1733885421440,0.205458,97344.0,97330.0,0.08236283]
[1733885421640,0.13728463,97343.0,97330.0,0.08236283]
[1733885421844,0.205471,97338.0,97330.0,0.08236283]
[1733885422060,0.205479,97334.0,97330.0,0.08236283]
[1733885422474,0.205479,97334.0,97331.0,0.048]
[1733885422724,0.205463,97341.0,97331.0,0.048]
[1733885422902,0.00535443,97345.0,97331.0,0.048]
[1733885422903,0.10532524,97340.0,97331.0,0.048]
[1733885423139,0.205469,97338.0,97331.0,0.048]
[1733885423612,0.205467,97339.0,97331.0,0.048]
[1733885423813,0.10532524,97340.0,97331.0,0.048]
[1733885424042,0.205477,97335.0,97331.0,0.048]
[1733885424661,0.001,97334.0,97331.0,0.048]
[1733885425138,0.205477,97335.0,97331.0,0.048]
[1733885425341,0.410954,97335.0,97331.0,0.048]
[1733885425544,0.413954,97335.0,97331.0,0.048]
[1733885425955,0.20548,97333.0,97331.0,0.048]
[1733885426159,0.10532524,97332.0,97331.0,0.048]
[1733885426334,0.209477,97335.0,97331.0,0.048]
[1733885426656,0.004,97335.0,97331.0,0.048]
[1733885427394,0.205478,97334.0,97331.0,0.048]
[1733885427627,0.208478,97334.0,97331.0,0.048]
[1733885428024,0.205478,97334.0,97331.0,0.048]
[1733885428656,0.411956,97334.0,97331.0,0.048]
[1733885429968,0.001,97334.0,97331.0,0.048]
[1733885430142,0.001,97334.0,97332.0,0.0756]
[1733885430355,0.001,97334.0,97333.0,0.0756]
[1733885430532,0.15,97378.0,97330.0,6.283e-05]
[1733885430533,8.58e-05,97380.0,97337.0,0.0494]
[1733885430718,8.58e-05,97380.0,97330.0,6.283e-05]
[1733885430719,0.205406,97368.0,97332.0,0.0756]
[1733885430918,0.20541,97366.0,97353.0,0.205436]
[1733885431204,0.10532524,97365.0,97355.0,0.0494]
[1733885431339,0.205414,97364.0,97355.0,0.0494]
[1733885431728,0.10532524,97365.0,97355.0,0.0494]
[1733885431923,0.205414,97364.0,97355.0,0.0494]
[1733885432330,0.10632524,97365.0,97355.0,0.0494]
[1733885432695,0.001,97365.0,97355.0,0.0494]
[1733885433080,0.001,97365.0,97361.0,0.0756]
[1733885433284,0.001,97365.0,97362.0,0.205418]
[1733885433604,0.001,97365.0,97364.0,0.205414]
[1733885433811,0.00536094,97379.0,97365.0,0.205412]
[1733885434432,0.00591281,97379.0,97365.0,0.205412]
[1733885434562,0.205385,97378.0,97365.0,0.205412]
[1733885434988,0.205396,97373.0,97363.0,0.0756]
[1733885435391,0.410792,97373.0,97363.0,0.0756]
[1733885435610,0.00791281,97379.0,97363.0,0.0756]
[1733885435611,0.205414,97364.0,97363.0,0.0756]
[1733885435752,0.10532524,97372.0,97363.0,0.0756]
[1733885435753,0.205401,97371.0,97363.0,0.0756]
[1733885435952,0.205397,97373.0,97363.0,0.0756]
[1733885436159,0.410818,97367.0,97363.0,0.0756]
[1733885436387,0.10532524,97366.0,97363.0,0.0756]
[1733885437004,0.205397,97373.0,97363.0,0.0756]
[1733885437266,0.205389,97377.0,97363.0,0.0756]
[1733885437446,0.2054,97371.0,97363.0,0.0756]
[1733885437848,0.2064,97371.0,97363.0,0.0756]
[1733885438392,0.2054,97371.0,97363.0,0.0756]
[1733885438956,0.2074,97371.0,97363.0,0.0756]
[1733885439292,0.205402,97370.0,97363.0,0.0756]
[1733885440343,0.205414,97365.0,97363.0,0.0756]
[1733885441461,0.31073924,97365.0,97363.0,0.0756]
[1733885442078,0.10532524,97365.0,97363.0,0.0756]
[1733885442281,0.205431,97357.0,97355.0,0.0494]
[1733885442493,0.10532524,97356.0,97355.0,0.0494]
[1733885444282,0.205447,97349.0,97342.0,0.0814]
[1733885444509,0.12586994,97348.0,97333.0,0.0814]
[1733885444846,0.03194714,97347.0,97330.0,0.0001716]
[1733885445067,0.20548,97333.0,97330.0,0.0001716]
[1733885445277,0.205484,97331.0,97330.0,0.0001716]
[1733885445455,0.31080924,97331.0,97330.0,0.0001716]
[1733885445686,0.31080924,97331.0,97330.0,0.00023443]
[1733885447009,0.34275185,97331.0,97330.0,0.00023443]
[1733885447211,0.49275185,97331.0,97330.0,0.00023443]
[1733885447611,0.50175185,97331.0,97330.0,0.00023443]
[1733885448027,0.68079124,97331.0,97330.0,0.00023443]
[1733885448251,0.49675185,97331.0,97330.0,0.00023443]
[1733885448445,0.50175185,97331.0,97330.0,0.00023443]
[1733885448704,0.49275185,97331.0,97330.0,0.00023443]
[1733885448871,0.68379124,97331.0,97330.0,0.00023443]
[1733885449259,0.68366142,97331.0,97330.0,0.00023443]
[1733885449605,0.5656863,97331.0,97330.0,0.00023443]
[1733885449833,0.7226863,97331.0,97330.0,4.3e-07]
[1733885450023,0.69174701,97331.0,97330.0,4.3e-07]
[1733885450432,0.205505,97321.0,97320.0,0.0001716]
[1733885450637,0.7346921,97321.0,97320.0,7.9e-07]
[1733885450846,0.77087614,97321.0,97320.0,7.9e-07]
[1733885451252,0.77623019,97321.0,97320.0,7.9e-07]
[1733885451459,0.6711269,97321.0,97320.0,7.9e-07]
[1733885451862,0.6801269,97321.0,97320.0,7.9e-07]
[1733885452276,0.69900322,97321.0,97320.0,7.9e-07]
[1733885452716,0.15,97312.0,97291.0,0.0004]
[1733885452930,0.49279185,97312.0,97311.0,0.00050727]
[1733885454267,0.50179185,97312.0,97311.0,2.7e-07]
[1733885454584,0.58752304,97312.0,97311.0,2.7e-07]
[1733885454715,0.323,97311.0,97310.0,8.7e-07]
[1733885454913,0.46026785,97311.0,97310.0,6.6e-07]
[1733885455337,0.5421891,97311.0,97310.0,6.6e-07]
[1733885455745,0.46026785,97311.0,97310.0,6.6e-07]
[1733885455943,0.31026785,97311.0,97310.0,6.6e-07]
[1733885456118,0.14699059,97311.0,97310.0,6.6e-07]
[1733885456338,0.11504798,97311.0,97310.0,6.6e-07]
[1733885458442,0.27404798,97311.0,97310.0,6.6e-07]
[1733885458853,0.28104798,97311.0,97310.0,6.6e-07]
[1733885459488,0.27404798,97311.0,97310.0,0.00017246]
[1733885459867,0.28104798,97311.0,97310.0,0.00017246]
[1733885460271,0.26504798,97311.0,97310.0,0.00017246]
[1733885460693,0.27404798,97311.0,97310.0,0.00017246]
[1733885462018,0.28104798,97311.0,97310.0,0.00017246]
[1733885462541,0.27404798,97311.0,97310.0,0.00017246]
[1733885462946,0.28104798,97311.0,97310.0,0.00017246]
[1733885464012,0.35025718,97311.0,97310.0,0.00017246]
[1733885464220,0.28104798,97311.0,97310.0,0.00017246]
[1733885465459,0.205547,97301.0,97291.0,0.0004]
[1733885465654,0.31087224,97301.0,97300.0,0.00083069]
[1733885466737,0.32077413,97301.0,97300.0,0.00083069]
[1733885466942,0.49377413,97301.0,97300.0,6.9e-07]
[1733885467775,0.32977413,97301.0,97300.0,6.9e-07]
[1733885467989,0.32077413,97301.0,97300.0,6.9e-07]
[1733885468160,0.32077413,97301.0,97300.0,0.07540069]
[1733885468399,0.32977413,97301.0,97300.0,0.07540069]
[1733885468822,0.32077413,97301.0,97300.0,0.07540069]
[1733885469021,0.32577413,97301.0,97300.0,0.07540069]
[1733885469141,0.33477413,97301.0,97300.0,0.07540069]
[1733885469584,0.32977413,97301.0,97300.0,0.07540069]
[1733885469970,0.33477413,97301.0,97300.0,0.07540069]
[1733885470549,0.32977413,97301.0,97300.0,0.07540069]
[1733885471587,0.33512753,97301.0,97300.0,0.07540069]
[1733885472571,0.34012753,97301.0,97300.0,0.07557249]
[1733885472781,0.34012753,97301.0,97300.0,0.12527249]
[1733885473196,0.0193534,97301.0,97300.0,0.12527249]
[1733885474016,0.0143534,97301.0,97300.0,0.12527249]
[1733885474220,0.32522564,97301.0,97300.0,0.12527249]
[1733885475592,0.31622564,97301.0,97300.0,0.12527249]
[1733885475763,0.31622564,97301.0,97300.0,0.04987249]
[1733885475944,0.34809548,97301.0,97300.0,0.00117249]
[1733885476151,0.34809548,97301.0,97300.0,0.00017249]
[1733885476475,0.35709548,97301.0,97300.0,0.00017249]
[1733885476928,0.35309548,97301.0,97300.0,0.00017249]
[1733885477060,0.36209548,97301.0,97300.0,4.9e-07]
[1733885477273,0.37209331,97301.0,97291.0,0.0004]
[1733885477500,0.205566,97292.0,97291.0,0.00056435]
[1733885477725,0.34276108,97292.0,97291.0,0.00056435]
[1733885478147,0.34276108,97292.0,97291.0,3.5e-07]
[1733885478422,0.51576108,97292.0,97291.0,3.5e-07]
[1733885478628,0.205589,97281.0,97280.0,4.7e-07]
[1733885478800,0.34278408,97281.0,97280.0,5.8e-07]
[1733885480145,0.35178408,97281.0,97280.0,5.8e-07]
[1733885480566,0.205609,97272.0,97253.0,0.0761]
[1733885480805,0.34280408,97272.0,97253.0,0.0761]
[1733885482276,0.3524581,97272.0,97253.0,0.0761]
[1733885482450,0.3574581,97272.0,97253.0,0.0761]
[1733885482857,0.3594581,97272.0,97253.0,0.0761]
[1733885483685,0.205611,97271.0,97268.0,0.0101476]
[1733885483962,0.10532524,97269.0,97268.0,0.0101476]
[1733885484139,0.22926199,97269.0,97268.0,0.0101476]
[1733885484783,0.23461494,97269.0,97268.0,0.0101476]
[1733885484998,0.23461494,97269.0,97251.0,0.0004]
[1733885484999,0.355632,97261.0,97260.0,6e-07]
[1733885485208,0.205651,97252.0,97251.0,0.0004]
[1733885485408,0.34284608,97252.0,97251.0,0.0004]
[1733885486977,0.34984608,97252.0,97251.0,0.0004]
[1733885487316,0.35284608,97252.0,97251.0,0.0004]
[1733885487793,0.36279095,97252.0,97251.0,0.0004]
[1733885488105,0.36000828,97252.0,97251.0,0.0004]
[1733885488724,0.35000828,97252.0,97251.0,0.0004]
[1733885488928,0.35700828,97252.0,97251.0,0.0004]
[1733885489108,0.36000828,97252.0,97251.0,0.0004]
[1733885489309,0.35300828,97252.0,97251.0,0.0004]
[1733885489525,0.36000828,97252.0,97251.0,0.0004]
[1733885489721,0.35700828,97252.0,97251.0,0.0004]
[1733885489921,0.36000828,97252.0,97251.0,0.0004]
[1733885492057,0.35700828,97252.0,97251.0,0.0004]
[1733885492513,0.35600828,97252.0,97251.0,0.0004]
[1733885492854,0.35900828,97252.0,97251.0,0.0004]
[1733885493055,0.35000828,97252.0,97251.0,0.0004]
[1733885493260,0.40677404,97252.0,97251.0,0.0004]
[1733885493460,0.41577404,97252.0,97251.0,0.0004]
[1733885493686,0.35000828,97252.0,97251.0,0.0004]
[1733885495363,0.35500828,97252.0,97251.0,0.0004]
[1733885495570,0.36400828,97252.0,97251.0,0.0004]
[1733885495720,0.35900828,97252.0,97251.0,0.0004]
[1733885495930,0.35000828,97252.0,97251.0,0.0004]
[1733885496132,0.35400828,97252.0,97251.0,0.0004]
[1733885496330,0.36300828,97252.0,97251.0,0.0004]
[1733885496557,0.42743691,97252.0,97251.0,0.0004]
[1733885496758,0.35000828,97252.0,97251.0,0.0004]
[1733885496958,0.36300828,97252.0,97251.0,0.0004]
[1733885497689,0.35400828,97252.0,97251.0,0.0004]
[1733885498228,0.35000828,97252.0,97251.0,0.0004]
[1733885498611,0.35600828,97252.0,97251.0,0.0004]
[1733885499146,0.35900828,97252.0,97251.0,0.0004]
[1733885499348,0.03186984,97252.0,97251.0,0.0776]
[1733885499560,0.20565,97253.0,97252.0,0.0495]
[1733885500967,0.21065,97253.0,97252.0,0.0495]
[1733885502837,0.20565,97253.0,97252.0,0.0495]
[1733885503239,0.20865,97253.0,97252.0,0.0495]
[1733885508210,0.31397524,97253.0,97252.0,0.0495]
[1733885509512,0.31097524,97253.0,97252.0,0.0495]
[1733885510505,0.3460025,97253.0,97252.0,0.0495]
[1733885510734,0.39817523,97253.0,97251.0,0.0776]
[1733885510954,0.1373525,97252.0,97251.0,0.0004]
[1733885513300,0.1463525,97252.0,97251.0,0.0004]
[1733885513761,0.1373525,97252.0,97251.0,0.0004]
[1733885514062,0.1463525,97252.0,97251.0,0.0004]
[1733885514690,0.1513525,97252.0,97251.0,0.0004]
[1733885515031,0.16117207,97252.0,97251.0,0.0004]
[1733885515238,0.15617207,97252.0,97251.0,0.0004]
[1733885515456,0.30016265,97252.0,97251.0,0.0004]
[1733885515856,0.29116265,97252.0,97251.0,0.0004]
[1733885516080,0.29416265,97252.0,97251.0,0.0004]
[1733885516484,0.29116265,97252.0,97251.0,0.0004]
[1733885516700,0.15317207,97252.0,97251.0,0.0004]
[1733885516896,0.16217207,97252.0,97251.0,0.0004]
[1733885517096,0.34631774,97252.0,97251.0,0.0004]
[1733885517348,0.16217207,97252.0,97224.0,0.05984523]
[1733885517550,0.205708,97225.0,97224.0,0.05984523]
[1733885517749,0.23773526,97225.0,97224.0,0.05984523]
[1733885518859,0.23828657,97225.0,97224.0,0.05984523]
[1733885520730,0.24028657,97225.0,97224.0,0.05984523]
[1733885522005,0.03457857,97225.0,97224.0,0.05984523]
[1733885522217,0.00255131,97225.0,97224.0,0.05984523]
[1733885522971,0.00055131,97225.0,97224.0,0.05984523]
[1733885523530,0.01010468,97246.0,97224.0,0.05984523]
[1733885523753,0.2305119,97257.0,97248.0,0.205658]
[1733885523958,8.58e-05,97260.0,97250.0,0.205655]
[1733885524219,8.58e-05,97260.0,97257.0,0.20564]
[1733885524428,8.58e-05,97260.0,97258.0,0.077]
[1733885525080,0.205636,97259.0,97258.0,0.077]
[1733885525231,0.17849209,97259.0,97249.0,0.0483]
[1733885525426,0.205655,97250.0,97249.0,0.0483]
[1733885525629,0.205651,97252.0,97249.0,0.0483]
[1733885525872,0.205651,97252.0,97249.0,0.04846446]
[1733885526497,0.205636,97259.0,97250.0,0.077]
[1733885526694,0.1500858,97260.0,97250.0,0.077]
[1733885526695,0.03203263,97258.0,97250.0,0.077]
[1733885526898,0.002,97252.0,97250.0,0.077]
[1733885527411,0.003,97252.0,97250.0,0.077]
[1733885527609,0.205637,97259.0,97250.0,0.077]
[1733885527910,0.205648,97254.0,97250.0,0.077]
[1733885528738,0.411296,97254.0,97250.0,0.077]
[1733885529090,0.205651,97252.0,97250.0,0.077]
[1733885529294,0.205655,97250.0,97249.0,0.00016446]
[1733885529501,0.43525668,97250.0,97249.0,0.00016446]
[1733885529658,0.34300896,97250.0,97249.0,0.00016446]
[1733885529858,0.53284004,97250.0,97249.0,0.00016446]
[1733885530457,0.35334459,97250.0,97249.0,0.00016446]
[1733885531212,0.36234459,97250.0,97249.0,0.00016446]
[1733885531411,0.34834459,97250.0,97249.0,0.00016446]
[1733885531638,0.45295321,97250.0,97249.0,0.00016446]
[1733885531811,0.34834459,97250.0,97249.0,0.00016446]
[1733885532794,0.34834459,97250.0,97249.0,4.6e-07]
[1733885532917,0.36134459,97250.0,97249.0,4.6e-07]
[1733885533125,0.52534459,97250.0,97249.0,4.6e-07]
[1733885533327,0.52534459,97250.0,97211.0,0.0004]
[1733885533328,0.205716,97221.0,97211.0,0.0004]
[1733885533538,0.34306996,97221.0,97220.0,0.00072291]
[1733885533937,0.4815073,97221.0,97220.0,0.00072291]
[1733885534173,0.34306996,97221.0,97220.0,0.00072291]
[1733885534621,0.48147031,97221.0,97220.0,0.00072291]
[1733885534772,0.48547031,97221.0,97220.0,0.00072291]
[1733885535323,0.34706996,97221.0,97220.0,0.00072291]
[1733885535901,0.48547031,97221.0,97220.0,0.00072291]
[1733885536100,0.49047031,97221.0,97220.0,0.00072291]
[1733885536337,0.35206996,97221.0,97220.0,0.00072291]
[1733885536489,0.44729178,97221.0,97220.0,0.00072291]
[1733885536937,0.45745488,97221.0,97220.0,0.00072291]
[1733885537269,0.45745569,97221.0,97220.0,0.00072291]
[1733885537628,0.36523306,97221.0,97220.0,0.00072291]
[1733885538165,0.45745569,97221.0,97220.0,0.00072291]
[1733885538584,0.36523306,97221.0,97220.0,0.00072291]
[1733885539006,0.45745569,97221.0,97220.0,0.00072291]
[1733885539137,0.205754,97203.0,97185.0,0.0803]
[1733885539383,0.205759,97201.0,97185.0,0.0803]
[1733885539581,0.48134264,97201.0,97185.0,0.0803]
[1733885539947,0.43526403,97201.0,97185.0,0.0803]
[1733885540358,0.34311296,97201.0,97185.0,0.0803]
[1733885540816,0.32008424,97201.0,97185.0,0.0803]
[1733885541211,0.32508424,97201.0,97185.0,0.0803]
[1733885541424,0.31608424,97201.0,97185.0,0.0803]
[1733885542562,0.31108424,97201.0,97191.0,0.0473]
[1733885542786,0.004,97201.0,97191.0,0.0473]
[1733885543023,0.02275941,97201.0,97200.0,0.0804716]
[1733885543238,0.013,97201.0,97200.0,0.0804716]
[1733885543465,0.205757,97202.0,97200.0,0.0804716]
[1733885543706,0.11632524,97201.0,97200.0,0.0804716]
[1733885544347,0.10832524,97201.0,97200.0,0.0804716]
[1733885544899,0.10532524,97201.0,97200.0,0.0804716]
[1733885545504,0.10532524,97201.0,97200.0,0.0001716]
[1733885545760,0.13727291,97201.0,97200.0,0.0001716]
[1733885546420,0.22927212,97201.0,97200.0,0.0001716]
[1733885546622,0.205778,97192.0,97191.0,0.000229]
[1733885546828,0.34305091,97192.0,97191.0,0.000229]
[1733885548058,0.35205091,97192.0,97191.0,0.000229]
[1733885548257,0.35605091,97192.0,97191.0,0.000229]
[1733885549532,0.11832524,97192.0,97191.0,0.000229]
[1733885549941,0.11832524,97192.0,97191.0,0.075629]
[1733885550155,0.12841923,97192.0,97191.0,0.075629]
[1733885550980,0.00055141,97221.0,97211.0,0.15]
[1733885551140,0.00055141,97221.0,97213.0,0.0754]
[1733885551548,0.00055141,97221.0,97219.0,0.205719]
[1733885551890,0.00055141,97221.0,97214.0,0.0698]
[1733885552031,0.205721,97219.0,97214.0,0.0468]
[1733885552439,0.205721,97219.0,97215.0,0.023]
[1733885552640,0.00955141,97221.0,97215.0,0.228729]
[1733885552844,0.00955141,97221.0,97215.0,0.023]
[1733885553045,0.01855141,97221.0,97215.0,0.023]
[1733885553297,0.01855141,97221.0,97220.0,0.228718]
[1733885553456,0.00055141,97221.0,97220.0,0.228718]